fUSD/lending_fUSD_20260613
["ID","MTS","AMOUNT","RATE_DAILY","PERIOD"]
[424957391,1781352643000,-500.0,0.00010544,2]
[424957400,1781352643000,-500.0,0.00010544,2]
[424957390,1781352643000,-500.0,0.00010544,2]
[424957393,1781352643000,-500.0,0.00010544,2]
[424957387,1781352643000,-500.0,0.00010544,2]
[424957389,1781352643000,-500.0,0.00010544,2]
[424957392,1781352643000,-500.0,0.00010544,2]
[424957394,1781352643000,-500.0,0.00010544,2]
[424957396,1781352643000,-500.0,0.00010544,2]
[424957398,1781352643000,-500.0,0.00010544,2]
[424957399,1781352643000,-500.0,0.00010544,2]
[424957413,1781352643000,-500.0,0.00010544,2]
[424957397,1781352643000,-500.0,0.00010544,2]
[424957386,1781352643000,-500.0,0.00010544,2]
[424957431,1781352644000,-500.0,0.00010544,2]
[424957433,1781352644000,-500.0,0.00010544,2]
[424957430,1781352644000,-500.0,0.00010544,2]
[424957434,1781352644000,-500.0,0.00010544,2]
[424957429,1781352644000,-500.0,0.00010544,2]
[424957432,1781352644000,-500.0,0.00010544,2]
[424957427,1781352644000,-500.0,0.00010544,2]
[424957436,1781352644000,-500.0,0.00010544,2]
[424957428,1781352644000,-500.0,0.00010544,2]
[424957435,1781352644000,-500.0,0.00010544,2]
[424957442,1781352644000,-500.0,0.00010544,2]
[424957439,1781352644000,-500.0,0.00010544,2]
[424957438,1781352644000,-500.0,0.00010544,2]
[424957448,1781352644000,-434.64726409,0.00010544,2]
[424957446,1781352644000,-500.0,0.00010544,2]
[424957445,1781352644000,-500.0,0.00010544,2]
[424957447,1781352644000,-500.0,0.00010544,2]
[424957441,1781352644000,-500.0,0.00010544,2]
[424957444,1781352644000,-500.0,0.00010544,2]
[424957440,1781352644000,-500.0,0.00010544,2]
[424957437,1781352644000,-500.0,0.00010544,2]
[424957443,1781352644000,-500.0,0.00010544,2]
[424957452,1781352646000,-500.0,0.00010544,2]
[424957461,1781352646000,-500.0,0.00010544,2]
[424957462,1781352646000,-500.0,0.00010544,2]
[424957456,1781352646000,-500.0,0.00010544,2]
[424957459,1781352646000,-500.0,0.00010544,2]
[424957454,1781352646000,-500.0,0.00010544,2]
[424957451,1781352646000,-500.0,0.00010544,2]
[424957455,1781352646000,-500.0,0.00010544,2]
[424957458,1781352646000,-500.0,0.00010544,2]
[424957453,1781352646000,-500.0,0.00010544,2]
[424957457,1781352646000,-500.0,0.00010544,2]
[424957450,1781352646000,-65.35273591,0.00010544,2]
[424957460,1781352646000,-500.0,0.00010544,2]
[424957464,1781352646000,-500.0,0.00010544,2]
[424957465,1781352646000,-398.786146,0.00010544,2]
[424957480,1781352646000,-285.78211092,0.00010544,2]
[424957489,1781352646000,-454.68174005,0.00010544,2]
[424957496,1781352646000,-2017.12832644,0.00010544,2]
[424957499,1781352646000,-4660.10140586,0.00010544,2]
[424957491,1781352646000,-4694.93067227,0.00010544,2]
[424957494,1781352646000,-566.36193517,0.00010544,2]
[424957476,1781352646000,-475.57579308,0.00010544,2]
[424957487,1781352646000,-897.28887585,0.00010544,2]
[424957484,1781352646000,-761.357904,0.00010544,2]
[424957469,1781352646000,-250.0,0.00010544,2]
[424957467,1781352646000,-151.0,0.00010544,2]
[424957473,1781352646000,-761.357904,0.00010544,2]
[424957463,1781352646000,-500.0,0.00010544,2]
[424957482,1781352646000,-761.357904,0.00010544,2]
[424957471,1781352646000,-2000.0,0.00010544,2]
[424957608,1781352647000,-59.43190054,0.00010544,2]
[424957532,1781352647000,-66744.76197111,0.00010544,2]
[424957529,1781352647000,-4066.4259084,0.00010544,2]
[424957619,1781352647000,-319.44,0.00010544,2]
[424957611,1781352647000,-935.43680053,0.00010544,2]
[424957614,1781352647000,-2136.27,0.00010544,2]
[424957622,1781352647000,-8048.6000539,0.00010544,2]
[424957617,1781352647000,-174147.50549897,0.00010544,2]
[424957625,1781352647000,-600.29324425,0.00010544,2]
[424957636,1781352709000,133000.0,0.00012,10]
[424957639,1781353630000,-339.33474674,8.063e-05,2]
[424957640,1781353646000,-1151.26830387,7.97e-05,2]
[424957641,1781353648000,-50487.24504961,7.97e-05,2]
[424957649,1781353833000,-151.0,7.967e-05,2]
[424957652,1781353833000,-500.0,7.968e-05,2]
[424957648,1781353833000,-150.0,7.73e-05,2]
[424957651,1781353833000,-500.0,7.968e-05,2]
[424957650,1781353833000,-151.0,7.967e-05,2]
[424957654,1781353833000,-500.0,7.968e-05,2]
[424957653,1781353833000,-500.0,7.968e-05,2]
[424957667,1781353834000,-6979.185874,8.178e-05,2]
[424957671,1781353834000,-500.0,8.219e-05,2]
[424957676,1781353834000,-500.0,8.502e-05,2]
[424957670,1781353834000,-500.0,8.219e-05,2]
[424957672,1781353834000,-272.66,8.341e-05,2]
[424957675,1781353834000,-250.0,8.502e-05,2]
[424957674,1781353834000,-193.0,8.502e-05,2]
[424957677,1781353834000,-500.0,8.502e-05,2]
[424957673,1781353834000,-500.0,8.502e-05,2]
[424957669,1781353834000,-333.29934525,8.219e-05,2]
[424957668,1781353834000,-500.0,8.219e-05,2]
[424957664,1781353834000,-151.0,8.067e-05,2]
[424957661,1781353834000,-328.66208251,7.969e-05,2]
[424957659,1781353834000,-500.0,7.969e-05,2]
[424957665,1781353834000,-154.76273732,8.086e-05,2]
[424957663,1781353834000,-244118.88264652,7.97e-05,2]
[424957662,1781353834000,-150.0,7.969e-05,2]
[424957658,1781353834000,-180.34741173,7.969e-05,2]
[424957660,1781353834000,-220.91049984,7.969e-05,2]
[424957656,1781353834000,-415.5738378,7.968e-05,2]
[424957655,1781353834000,-500.0,7.968e-05,2]
[424957657,1781353834000,-206.29535734,7.969e-05,2]
[424957678,1781353834000,-500.0,8.502e-05,2]
[424957666,1781353834000,-216.029201,8.098e-05,2]
[424957679,1781353834000,-151.0,8.57e-05,2]
[424957683,1781353834000,-253.34097246,8.767e-05,2]
[424957680,1781353834000,-554.46,8.573e-05,2]
[424957681,1781353834000,-300244.5,8.573e-05,2]
[424957705,1781353834000,-364.0,9.917e-05,2]
[424957704,1781353834000,-429585.62317054,9.917e-05,2]
[424957703,1781353834000,-27140.06,9.89e-05,2]
[424957701,1781353834000,-250.0,9.873e-05,2]
[424957700,1781353834000,-2000.0,9.867e-05,2]
[424957697,1781353834000,-726.27744239,9.744e-05,2]
[424957698,1781353834000,-162.26,9.75e-05,2]
[424957699,1781353834000,-338.74,9.819e-05,2]
[424957695,1781353834000,-554.46,9.645e-05,2]
[424957696,1781353834000,-836.05693241,9.744e-05,2]
[424957702,1781353834000,-18860.50911331,9.873e-05,2]
[424957694,1781353834000,-152.46,9.636e-05,2]
[424957691,1781353834000,-6865.33204049,8.88e-05,2]
[424957692,1781353834000,-748.38,8.988e-05,2]
[424957690,1781353834000,-500.0,8.869e-05,2]
[424957689,1781353834000,-342.04670984,8.869e-05,2]
[424957686,1781353834000,-300.0,8.869e-05,2]
[424957685,1781353834000,-300.0,8.869e-05,2]
[424957687,1781353834000,-300.0,8.869e-05,2]
[424957684,1781353834000,-2000.0,8.771e-05,2]
[424957688,1781353834000,-300.0,8.869e-05,2]
[424957682,1781353834000,-180.53,8.688e-05,2]
[424957693,1781353834000,-152.46,8.993e-05,2]
[424957708,1781353838000,-2510.8565844,9.917e-05,2]
[424957709,1781353838000,-450.58499,9.917e-05,2]
[424957710,1781353838000,-567.55422407,9.917e-05,2]
[424957712,1781353838000,-3568.85180875,9.917e-05,2]
[424957711,1781353838000,-6187.64401634,9.917e-05,2]
[424957729,1781353840000,-20183.02116346,9.917e-05,2]
[424957728,1781353840000,-302556.5288372,9.917e-05,2]
[424957731,1781353841000,-262.274395,9.917e-05,2]
[424957730,1781353841000,-549.88326962,9.917e-05,2]
[424957746,1781353843000,-295757.39609635,9.917e-05,2]
[424957745,1781353843000,-191933.33911051,9.917e-05,2]
[424957743,1781353843000,-1583.09026107,9.917e-05,2]
[424957744,1781353843000,-472.66,9.917e-05,2]
[424957752,1781353845000,-10073.01902851,9.917e-05,2]
[424957754,1781353845000,-528.80535877,9.917e-05,2]
[424957755,1781353845000,-1617.53397861,9.917e-05,2]
[424957753,1781353845000,-626.04650476,9.917e-05,2]
[424957756,1781353845000,-10520.2125,9.917e-05,2]
[424957758,1781353846000,-33340.97552644,9.917e-05,2]
[424957759,1781353846000,-1153.0,9.917e-05,2]
[424957757,1781353846000,-937.75489543,9.917e-05,2]
[424957767,1781354022000,220.41324243,9.079e-05,7]
[424957771,1781354170000,152.0,7.477e-05,7]
[424957770,1781354170000,152.0,7.477e-05,7]
[424957774,1781354732000,-423.95127814,7.822e-05,2]
[424957773,1781354732000,-150.0,7.819e-05,2]
[424957775,1781354751000,152.0,7.708e-05,7]
[424957776,1781354828000,-397.59819549,7.822e-05,2]
[424957780,1781354968000,-580.06345776,7.72e-05,2]
[424957782,1781354968000,-7.16503096,7.72e-05,2]
[424957781,1781354968000,-500.0,7.72e-05,2]
[424957779,1781354968000,-154.63734989,7.72e-05,2]
[424957810,1781355033000,-500.0,7.719e-05,2]
[424957799,1781355033000,-500.50998812,7.719e-05,2]
[424957798,1781355033000,-500.0,7.719e-05,2]
[424957800,1781355033000,-500.0,7.719e-05,2]
[424957797,1781355033000,-500.0,7.719e-05,2]
[424957795,1781355033000,-500.0,7.719e-05,2]
[424957794,1781355033000,-500.0,7.719e-05,2]
[424957791,1781355033000,-500.0,7.719e-05,2]
[424957785,1781355033000,-500.0,7.719e-05,2]
[424957792,1781355033000,-500.0,7.719e-05,2]
[424957796,1781355033000,-500.0,7.719e-05,2]
[424957788,1781355033000,-500.0,7.719e-05,2]
[424957789,1781355033000,-500.0,7.719e-05,2]
[424957790,1781355033000,-500.0,7.719e-05,2]
[424957787,1781355033000,-500.0,7.719e-05,2]
[424957786,1781355033000,-500.0,7.719e-05,2]
[424957784,1781355033000,-406.04442043,7.719e-05,2]
[424957793,1781355033000,-500.0,7.719e-05,2]
[424957802,1781355033000,-500.0,7.719e-05,2]
[424957816,1781355033000,-433.98956937,7.719e-05,2]
[424957801,1781355033000,-500.0,7.719e-05,2]
[424957812,1781355033000,-500.0,7.719e-05,2]
[424957838,1781355033000,-6663.74125039,7.721e-05,2]
[424957836,1781355033000,-500.0,7.719e-05,2]
[424957828,1781355033000,-500.0,7.719e-05,2]
[424957833,1781355033000,-14663.10279216,7.721e-05,2]
[424957830,1781355033000,-500.0,7.719e-05,2]
[424957834,1781355033000,-78890.61014967,7.721e-05,2]
[424957835,1781355033000,-1254.41808677,7.721e-05,2]
[424957832,1781355033000,-381862.15361276,7.721e-05,2]
[424957837,1781355033000,-500.0,7.719e-05,2]
[424957824,1781355033000,-500.0,7.719e-05,2]
[424957822,1781355033000,-500.0,7.719e-05,2]
[424957820,1781355033000,-500.0,7.719e-05,2]
[424957818,1781355033000,-500.0,7.719e-05,2]
[424957806,1781355033000,-352.09641076,7.719e-05,2]
[424957808,1781355033000,-500.0,7.719e-05,2]
[424957804,1781355033000,-500.0,7.719e-05,2]
[424957803,1781355033000,-500.0,7.719e-05,2]
[424957814,1781355033000,-598.57631742,7.719e-05,2]
[424957826,1781355033000,-500.0,7.719e-05,2]
[424957839,1781355034000,-500.0,7.719e-05,2]
[424957840,1781355034000,-500.0,7.719e-05,2]
[424957841,1781355034000,-5393.9,7.721e-05,2]
[424957842,1781355034000,-500.0,7.719e-05,2]
[424957845,1781355034000,-1108.08459598,7.721e-05,2]
[424957844,1781355034000,-138.52788455,7.719e-05,2]
[424957843,1781355034000,-361.47211545,7.719e-05,2]
[424957864,1781355038000,-500.0,7.719e-05,2]
[424957854,1781355038000,-500.0,7.719e-05,2]
[424957856,1781355038000,-500.0,7.719e-05,2]
[424957859,1781355038000,-500.0,7.719e-05,2]
[424957860,1781355038000,-500.0,7.719e-05,2]
[424957857,1781355038000,-500.0,7.719e-05,2]
[424957861,1781355038000,-500.0,7.719e-05,2]
[424957858,1781355038000,-500.0,7.719e-05,2]
[424957862,1781355038000,-500.0,7.719e-05,2]
[424957863,1781355038000,-500.0,7.719e-05,2]
[424957865,1781355038000,-561.33887947,7.719e-05,2]
[424957855,1781355038000,-500.0,7.719e-05,2]
[424957884,1781355038000,-3057.7273,7.77e-05,2]
[424957866,1781355038000,-500.0,7.719e-05,2]
[424957890,1781355038000,-8669.87052637,7.822e-05,2]
[424957891,1781355038000,-883.15,7.822e-05,2]
[424957872,1781355038000,-500.0,7.719e-05,2]
[424957870,1781355038000,-500.0,7.719e-05,2]
[424957889,1781355038000,-1000.0,7.821e-05,2]
[424957886,1781355038000,-154.76273733,7.77e-05,2]
[424957868,1781355038000,-500.0,7.719e-05,2]
[424957882,1781355038000,-2003669.96439102,7.721e-05,2]
[424957879,1781355038000,-6494.02512125,7.721e-05,2]
[424957876,1781355038000,-614.35609446,7.719e-05,2]
[424957874,1781355038000,-500.0,7.719e-05,2]
[424957915,1781355039000,-500.0,8.219e-05,2]
[424957926,1781355039000,-250.0,8.604e-05,2]
[424957916,1781355039000,-3367.75,8.219e-05,2]
[424957920,1781355039000,-250.0,8.492e-05,2]
[424957923,1781355039000,-500.0,8.492e-05,2]
[424957925,1781355039000,-200.0,8.601e-05,2]
[424957922,1781355039000,-300.0,8.492e-05,2]
[424957924,1781355039000,-500.0,8.493e-05,2]
[424957921,1781355039000,-300.0,8.492e-05,2]
[424957927,1781355039000,-2452.51,8.614e-05,2]
[424957933,1781355039000,-1248.66658046,8.869e-05,2]
[424957929,1781355039000,-176.22,8.676e-05,2]
[424957932,1781355039000,-883.15,8.8e-05,2]
[424957931,1781355039000,-420.0,8.78e-05,2]
[424957930,1781355039000,-500.0,8.767e-05,2]
[424957919,1781355039000,-193.33086742,8.492e-05,2]
[424957934,1781355039000,-5871.19913141,8.869e-05,2]
[424957937,1781355039000,-176.22,9.132e-05,2]
[424957936,1781355039000,-2002.325013,9.041e-05,2]
[424957935,1781355039000,-500.0,9.041e-05,2]
[424957938,1781355039000,-16277.8284241,9.29e-05,2]
[424957928,1781355039000,-500.0,8.658e-05,2]
[424957913,1781355039000,-500.0,8.219e-05,2]
[424957908,1781355039000,-594.31,8.046e-05,2]
[424957918,1781355039000,-300.0,8.492e-05,2]
[424957939,1781355039000,-690881.3439908,9.29e-05,2]
[424957893,1781355039000,-150.0,7.846e-05,2]
[424957892,1781355039000,-1081.21,7.822e-05,2]
[424957894,1781355039000,-150.0,7.846e-05,2]
[424957895,1781355039000,-8958.97,7.869e-05,2]
[424957896,1781355039000,-150.0,7.869e-05,2]
[424957897,1781355039000,-99373.066,7.87e-05,2]
[424957898,1781355039000,-5464.46686677,7.89e-05,2]
[424957899,1781355039000,-198.38263093,7.89e-05,2]
[424957900,1781355039000,-1581.51,7.89e-05,2]
[424957911,1781355039000,-500.0,8.219e-05,2]
[424957901,1781355039000,-8372.15,7.89e-05,2]
[424957904,1781355039000,-151.0,7.967e-05,2]
[424957905,1781355039000,-1000.0,7.973e-05,2]
[424957907,1781355039000,-171.0,8.002e-05,2]
[424957902,1781355039000,-150.0,7.924e-05,2]
[424957909,1781355039000,-7474.31,8.051e-05,2]
[424957906,1781355039000,-216.029201,8e-05,2]
[424957910,1781355039000,-1715.14287,8.178e-05,2]
[424957914,1781355039000,-176.22,8.219e-05,2]
[424957912,1781355039000,-283.30954168,8.219e-05,2]
[424957917,1781355039000,-300.0,8.492e-05,2]
[424957903,1781355039000,-200.0,7.936e-05,2]
[424957941,1781355039000,-456.814742,9.29e-05,2]
[424957940,1781355039000,-456.814742,9.29e-05,2]
[424957943,1781355039000,-456.814742,9.29e-05,2]
[424957974,1781355039000,-315.0,9.917e-05,2]
[424957976,1781355039000,-310.0,9.917e-05,2]
[424957977,1781355039000,-313.0,9.917e-05,2]
[424957979,1781355039000,-311.0,9.917e-05,2]
[424957975,1781355039000,-312.0,9.917e-05,2]
[424957981,1781355039000,-178.843,9.944e-05,2]
[424957978,1781355039000,-312.0,9.917e-05,2]
[424957972,1781355039000,-313.0,9.917e-05,2]
[424957982,1781355039000,-3179.222,9.944e-05,2]
[424957980,1781355039000,-500.0,9.918e-05,2]
[424957984,1781355039000,-151.0,9.975e-05,2]
[424957983,1781355039000,-161.3,9.945e-05,2]
[424957990,1781355039000,-310.0,0.0001,2]
[424957991,1781355039000,-1490.91,0.00010027,2]
[424957985,1781355039000,-151.0,9.975e-05,2]
[424957986,1781355039000,-1247.5422867,0.0001,2]
[424957988,1781355039000,-1116.15251538,0.0001,2]
[424957987,1781355039000,-1116.15251538,0.0001,2]
[424957989,1781355039000,-309.0,0.0001,2]
[424957992,1781355039000,-176.22,0.00010046,2]
[424957993,1781355039000,-1359.0,0.000101,2]
[424957968,1781355039000,-319.0,9.82e-05,2]
[424957970,1781355039000,-160.0,9.848e-05,2]
[424957973,1781355039000,-317.0,9.917e-05,2]
[424957969,1781355039000,-316.0,9.82e-05,2]
[424957964,1781355039000,-68835.53221496,9.82e-05,2]
[424957942,1781355039000,-456.814742,9.29e-05,2]
[424957944,1781355039000,-12619.4619513,9.291e-05,2]
[424957945,1781355039000,-13184.6586684,9.291e-05,2]
[424957947,1781355039000,-500.0,9.315e-05,2]
[424957946,1781355039000,-6201.6357127,9.291e-05,2]
[424957950,1781355039000,-883.15,9.778e-05,2]
[424957962,1781355039000,-456.814742,9.817e-05,2]
[424957960,1781355039000,-456.814742,9.817e-05,2]
[424957961,1781355039000,-456.814742,9.817e-05,2]
[424957949,1781355039000,-176.22,9.589e-05,2]
[424957948,1781355039000,-10408.45011837,9.551e-05,2]
[424957967,1781355039000,-310.0,9.82e-05,2]
[424957951,1781355039000,-151.0,9.814e-05,2]
[424957953,1781355039000,-33277.9515,9.817e-05,2]
[424957954,1781355039000,-8580.5568,9.817e-05,2]
[424957959,1781355039000,-1500000.0,9.817e-05,2]
[424957957,1781355039000,-2000.0,9.817e-05,2]
[424957963,1781355039000,-456.814742,9.817e-05,2]
[424957965,1781355039000,-319.0,9.82e-05,2]
[424957966,1781355039000,-311.0,9.82e-05,2]
[424957971,1781355039000,-151.0,9.914e-05,2]
[424957952,1781355039000,-250.0,9.814e-05,2]
[424958029,1781355040000,-98229.11918242,0.00010544,2]
[424958025,1781355040000,-456.814742,0.00010544,2]
[424958024,1781355040000,-456.814742,0.00010544,2]
[424958028,1781355040000,-348.40166504,0.00010544,2]
[424958017,1781355040000,-684.701679,0.00010544,2]
[424958031,1781355040000,-320.0,0.00010544,2]
[424958021,1781355040000,-151.0,0.00010544,2]
[424958022,1781355040000,-151.0,0.00010544,2]
[424958027,1781355040000,-1000.0,0.00010544,2]
[424958023,1781355040000,-456.814742,0.00010544,2]
[424958030,1781355040000,-318.0,0.00010544,2]
[424958034,1781355040000,-340.0,0.00010565,2]
[424958032,1781355040000,-318.0,0.00010544,2]
[424958038,1781355040000,-340.0,0.00010565,2]
[424958033,1781355040000,-340.0,0.00010565,2]
[424958040,1781355040000,-340.0,0.00010565,2]
[424958039,1781355040000,-340.0,0.00010565,2]
[424958035,1781355040000,-340.0,0.00010565,2]
[424958036,1781355040000,-340.0,0.00010565,2]
[424958041,1781355040000,-340.0,0.00010565,2]
[424958037,1781355040000,-340.0,0.00010565,2]
[424958053,1781355040000,-199.48687789,0.00010768,2]
[424958026,1781355040000,-456.814742,0.00010544,2]
[424958019,1781355040000,-151.283773,0.00010544,2]
[424957995,1781355040000,-1275.0,0.000101,2]
[424958015,1781355040000,-1490.91,0.00010529,2]
[424958043,1781355040000,-340.0,0.00010565,2]
[424957994,1781355040000,-165.473,0.000101,2]
[424957996,1781355040000,-383.0,0.000101,2]
[424958001,1781355040000,-718.19,0.000102,2]
[424957997,1781355040000,-150.0,0.000101,2]
[424957998,1781355040000,-278.0,0.000101,2]
[424957999,1781355040000,-27468.06454014,0.00010101,2]
[424958000,1781355040000,-231.02971711,0.00010165,2]
[424958003,1781355040000,-1490.91,0.00010278,2]
[424958004,1781355040000,-162.26,0.00010287,2]
[424958002,1781355040000,-818.0,0.00010276,5]
[424958007,1781355040000,-644.07,0.0001035,2]
[424958008,1781355040000,-500.0,0.00010356,2]
[424958006,1781355040000,-396.15,0.00010343,2]
[424958005,1781355040000,-644.12,0.00010341,2]
[424958010,1781355040000,-500.0,0.00010356,2]
[424958009,1781355040000,-500.0,0.00010356,2]
[424958012,1781355040000,-560.0,0.0001042,5]
[424958011,1781355040000,-448.0,0.0001042,5]
[424958013,1781355040000,-1619.26354055,0.0001049,2]
[424958020,1781355040000,-151.0,0.00010544,2]
[424958018,1781355040000,-14332.0963166,0.00010544,2]
[424958016,1781355040000,-151.0,0.00010541,2]
[424958014,1781355040000,-176.22,0.00010502,2]
[424958044,1781355040000,-340.0,0.00010565,2]
[424958099,1781355040000,-1469.87317734,0.000109,2]
[424958052,1781355040000,-883.15,0.00010756,2]
[424958074,1781355040000,-162.14443692,0.00010812,2]
[424958076,1781355040000,-150.0,0.00010823,2]
[424958089,1781355040000,-11362.58891488,0.00010877,2]
[424958078,1781355040000,-162.14443692,0.00010824,2]
[424958079,1781355040000,-150.0,0.0001083,2]
[424958082,1781355040000,-162.14443692,0.00010848,2]
[424958077,1781355040000,-162.26,0.00010823,2]
[424958080,1781355040000,-162.14443692,0.00010836,2]
[424958084,1781355040000,-150.0,0.00010864,2]
[424958085,1781355040000,-150.0,0.00010871,2]
[424958102,1781355040000,-150.0,0.00010908,2]
[424958087,1781355040000,-162.14443692,0.00010872,2]
[424958083,1781355040000,-162.14443692,0.0001086,2]
[424958101,1781355040000,-162.14443692,0.00010908,2]
[424958091,1781355040000,-150.0,0.00010884,2]
[424958098,1781355040000,-1469.87317734,0.000109,2]
[424958096,1781355040000,-162.14443692,0.00010896,2]
[424958093,1781355040000,-150.0,0.00010884,2]
[424958095,1781355040000,-304.600796,0.00010884,7]
[424958100,1781355040000,-1469.87317734,0.000109,2]
[424958097,1781355040000,-1469.87317734,0.000109,2]
[424958094,1781355040000,-162.14443692,0.00010884,2]
[424958042,1781355040000,-340.0,0.00010565,2]
[424958075,1781355040000,-150.0,0.0001082,2]
[424958073,1781355040000,-150.0,0.00010812,2]
[424958081,1781355040000,-150.0,0.00010848,2]
[424958072,1781355040000,-221.34,0.00010804,2]
[424958047,1781355040000,-2377.310414,0.00010659,2]
[424958070,1781355040000,-151.0,0.00010804,2]
[424958045,1781355040000,-340.0,0.00010565,2]
[424958046,1781355040000,-171.36324355,0.00010565,2]
[424958050,1781355040000,-353.679322,0.00010659,2]
[424958049,1781355040000,-2366.060162,0.00010659,2]
[424958051,1781355040000,-554.46,0.00010717,2]
[424958056,1781355040000,-150.0,0.00010775,2]
[424958054,1781355040000,-150.0,0.00010775,2]
[424958065,1781355040000,-1490.91,0.00010779,2]
[424958057,1781355040000,-150.0,0.00010775,2]
[424958055,1781355040000,-150.0,0.00010775,2]
[424958060,1781355040000,-150.0,0.00010775,2]
[424958071,1781355040000,-151.0,0.00010804,2]
[424958058,1781355040000,-150.0,0.00010775,2]
[424958068,1781355040000,-151.0,0.00010804,2]
[424958067,1781355040000,-162.14443692,0.000108,2]
[424958066,1781355040000,-162.14443692,0.00010787,2]
[424958069,1781355040000,-151.0,0.00010804,2]
[424958064,1781355040000,-150.0,0.00010775,2]
[424958063,1781355040000,-162.14443692,0.00010775,2]
[424958062,1781355040000,-203.97459648,0.00010775,2]
[424958059,1781355040000,-150.0,0.00010775,2]
[424958061,1781355040000,-150.0,0.00010775,2]
[424958131,1781355041000,-150.0,0.00010967,2]
[424958139,1781355041000,-150.0,0.00010997,2]
[424958130,1781355041000,-2000.0,0.00010963,2]
[424958133,1781355041000,-162.14443692,0.00010981,2]
[424958132,1781355041000,-162.14443692,0.00010969,2]
[424958135,1781355041000,-1065.37315,0.0001099,2]
[424958134,1781355041000,-1065.37315,0.0001099,2]
[424958143,1781355041000,-446.99,0.00011,2]
[424958136,1781355041000,-150.0,0.00010993,2]
[424958141,1781355041000,-150.0,0.00011,2]
[424958142,1781355041000,-357.43,0.00011,2]
[424958148,1781355041000,-529.02,0.00011,2]
[424958144,1781355041000,-255.68,0.00011,2]
[424958140,1781355041000,-150.0,0.00011,2]
[424958137,1781355041000,-150.0,0.00010993,2]
[424958152,1781355041000,-559.91,0.00011,2]
[424958150,1781355041000,-550.16,0.00011,2]
[424958154,1781355041000,-162.14443692,0.00011005,2]
[424958146,1781355041000,-814.74,0.00011,2]
[424958153,1781355041000,-977.48,0.00011,2]
[424958149,1781355041000,-208.0,0.00011,2]
[424958145,1781355041000,-173.63,0.00011,2]
[424958151,1781355041000,-256.12,0.00011,2]
[424958138,1781355041000,-162.14443692,0.00010993,2]
[424958128,1781355041000,-150.0,0.00010959,2]
[424958107,1781355041000,-162.14443692,0.00010933,2]
[424958127,1781355041000,-150.0,0.00010959,2]
[424958147,1781355041000,-388.45,0.00011,2]
[424958109,1781355041000,-162.14443692,0.00010945,2]
[424958104,1781355041000,-150.0,0.0001092,2]
[424958106,1781355041000,-150.0,0.00010925,2]
[424958110,1781355041000,-150.0,0.00010953,2]
[424958103,1781355041000,-150.0,0.00010919,2]
[424958111,1781355041000,-150.0,0.00010957,2]
[424958105,1781355041000,-162.14443692,0.0001092,2]
[424958108,1781355041000,-150.0,0.00010939,2]
[424958112,1781355041000,-162.14443692,0.00010957,2]
[424958113,1781355041000,-500.0,0.00010958,2]
[424958129,1781355041000,-176.22,0.00010959,2]
[424958122,1781355041000,-500.0,0.00010958,2]
[424958121,1781355041000,-500.0,0.00010958,2]
[424958114,1781355041000,-500.0,0.00010958,2]
[424958117,1781355041000,-500.0,0.00010958,2]
[424958118,1781355041000,-500.0,0.00010958,2]
[424958116,1781355041000,-500.0,0.00010958,2]
[424958120,1781355041000,-500.0,0.00010958,2]
[424958119,1781355041000,-500.0,0.00010958,2]
[424958123,1781355041000,-200.0,0.00010959,2]
[424958125,1781355041000,-166.66,0.00010959,2]
[424958124,1781355041000,-200.0,0.00010959,2]
[424958126,1781355041000,-151.0,0.00010959,2]
[424958115,1781355041000,-500.0,0.00010958,2]
[424958157,1781355041000,-162.14443692,0.00011017,2]
[424958183,1781355041000,-45570.24218617,0.00011099,2]
[424958159,1781355041000,-162.14443692,0.00011029,2]